[Event "*** Titled Tuesday Blitz"]
[Site "Chess.com"]
[Date "2021.03.02"]
[Round "9"]
[White "KerryStead"]
[Black "masrahi"]
[Result "1-0"]
[WhiteElo "2030"]
[BlackElo "2205"]
[TimeControl "180+1"]
[EndTime "11:46:33 PST"]
[Termination "KerryStead won by resignation"]

1. d4 {[%clk 0:03:00.9]} 1... d5 {[%clk 0:02:59.5]} 2. e4 {[%clk 0:03:00.6]}
2... dxe4 {[%clk 0:02:58.7]} 3. Nc3 {[%clk 0:03:00.3]} 3... Nf6 {[%clk
0:02:59.2]} 4. f3 {[%clk 0:03:00.2]} 4... e3 {[%clk 0:02:53.5]} 5. Bxe3 {[%clk
0:02:59.5]} 5... Bf5 {[%clk 0:02:53.5]} 6. Qd2 {[%clk 0:02:59]} 6... e6 {[%clk
0:02:53.1]} 7. O-O-O {[%clk 0:02:57.7]} 7... h5 {[%clk 0:02:51.3]} 8. Nge2
{[%clk 0:02:56.8]} 8... c6 {[%clk 0:02:51.1]} 9. Ng3 {[%clk 0:02:55.7]} 9... Bg6
{[%clk 0:02:51]} 10. Nge4 {[%clk 0:02:55.4]} 10... Nbd7 {[%clk 0:02:49]} 11. Bd3
{[%clk 0:02:54.1]} 11... Nd5 {[%clk 0:02:48.5]} 12. Nxd5 {[%clk 0:02:50.2]}
12... cxd5 {[%clk 0:02:47.3]} 13. Nc3 {[%clk 0:02:46.8]} 13... Bxd3 {[%clk
0:02:42.6]} 14. Qxd3 {[%clk 0:02:46.1]} 14... Qb6 {[%clk 0:02:38.7]} 15. Qb5
{[%clk 0:02:43]} 15... Bb4 {[%clk 0:02:23.2]} 16. Qxb6 {[%clk 0:02:35.2]} 16...
Nxb6 {[%clk 0:02:24.1]} 17. Ne2 {[%clk 0:02:30.6]} 17... Nc4 {[%clk 0:02:08.9]}
18. Bf4 {[%clk 0:02:30.1]} 18... Rc8 {[%clk 0:02:02.5]} 19. c3 {[%clk
0:02:23.4]} 19... Be7 {[%clk 0:02:01.3]} 20. h4 {[%clk 0:02:21]} 20... O-O
{[%clk 0:01:56.5]} 21. Kb1 {[%clk 0:02:19]} 21... b5 {[%clk 0:01:55.6]} 22. b3
{[%clk 0:02:16]} 22... Nb6 {[%clk 0:01:53.1]} 23. Kb2 {[%clk 0:02:15.1]} 23...
a5 {[%clk 0:01:51.5]} 24. Ng3 {[%clk 0:02:13.7]} 24... g6 {[%clk 0:01:50.4]} 25.
Rhe1 {[%clk 0:02:08.4]} 25... b4 {[%clk 0:01:44.7]} 26. cxb4 {[%clk 0:02:04.5]}
26... Bxb4 {[%clk 0:01:41.8]} 27. Re2 {[%clk 0:01:59.9]} 27... Rc6 {[%clk
0:01:27.8]} 28. Rc1 {[%clk 0:01:55]} 28... Rfc8 {[%clk 0:01:22.8]} 29. Rxc6
{[%clk 0:01:53.4]} 29... Rxc6 {[%clk 0:01:23.7]} 30. Rc2 {[%clk 0:01:53.2]}
30... Rxc2+ {[%clk 0:01:01.2]} 31. Kxc2 {[%clk 0:01:52.5]} 31... Be1 {[%clk
0:00:59.3]} 32. Kd1 {[%clk 0:01:47]} 32... Bxg3 {[%clk 0:00:47]} 33. Bxg3 {[%clk
0:01:46]} 33... a4 {[%clk 0:00:40.1]} 34. Kc2 {[%clk 0:01:44.1]} 34... Kf8
{[%clk 0:00:36.6]} 35. Bc7 {[%clk 0:01:42.1]} 35... axb3+ {[%clk 0:00:34.5]} 36.
axb3 {[%clk 0:01:36.3]} 36... Nd7 {[%clk 0:00:33.3]} 37. b4 {[%clk 0:01:34.7]}
37... Ke8 {[%clk 0:00:23.4]} 38. Kb3 {[%clk 0:01:32.3]} 38... Nf6 {[%clk
0:00:19.8]} 39. Ka4 {[%clk 0:01:31.7]} 39... Kd7 {[%clk 0:00:20.3]} 40. Be5
{[%clk 0:01:30.4]} 40... Ne8 {[%clk 0:00:19.8]} 41. Kb5 {[%clk 0:01:29.2]} 41...
Kc8 {[%clk 0:00:17.9]} 42. Kc6 {[%clk 0:01:27.7]} 42... f6 {[%clk 0:00:17]} 43.
Bg3 {[%clk 0:01:25.4]} 43... g5 {[%clk 0:00:17.1]} 44. hxg5 {[%clk 0:01:24.5]}
44... fxg5 {[%clk 0:00:18]} 45. b5 {[%clk 0:01:23.1]} 45... h4 {[%clk
0:00:14.6]} 46. Be5 {[%clk 0:01:22.6]} 1-0

[Event "*** Titled Tuesday Blitz"]
[Site "Chess.com"]
[Date "2021.03.02"]
[Round "9"]
[White "Kozok"]
[Black "Cuajada_Zero"]
[Result "1-0"]
[WhiteElo "2458"]
[BlackElo "2286"]
[TimeControl "180+1"]
[EndTime "11:46:37 PST"]
[Termination "Kozok won by resignation"]

1. e4 {[%clk 0:02:58.9]} 1... c6 {[%clk 0:02:57.4]} 2. d4 {[%clk 0:02:58]} 2...
d5 {[%clk 0:02:55.5]} 3. e5 {[%clk 0:02:58.4]} 3... Bf5 {[%clk 0:02:53.6]} 4.
Nf3 {[%clk 0:02:53.3]} 4... e6 {[%clk 0:02:53.3]} 5. Be2 {[%clk 0:02:53.5]} 5...
Nd7 {[%clk 0:02:53.3]} 6. O-O {[%clk 0:02:53.2]} 6... Ne7 {[%clk 0:02:53.9]} 7.
Re1 {[%clk 0:02:39.9]} 7... h6 {[%clk 0:02:53.8]} 8. a4 {[%clk 0:02:36.3]} 8...
Bh7 {[%clk 0:02:52.3]} 9. a5 {[%clk 0:02:33]} 9... Nf5 {[%clk 0:02:50.4]} 10. c3
{[%clk 0:02:16.1]} 10... Be7 {[%clk 0:02:47.9]} 11. b4 {[%clk 0:02:12]} 11...
O-O {[%clk 0:02:44.9]} 12. Bd2 {[%clk 0:02:06.3]} 12... b6 {[%clk 0:02:43.1]}
13. a6 {[%clk 0:01:59.5]} 13... c5 {[%clk 0:02:42]} 14. Na3 {[%clk 0:01:56.8]}
14... Nb8 {[%clk 0:02:10.5]} 15. Qa4 {[%clk 0:01:47.9]} 15... c4 {[%clk
0:01:57.8]} 16. g4 {[%clk 0:01:36]} 16... Nh4 {[%clk 0:01:57.4]} 17. Nxh4 {[%clk
0:01:36.7]} 17... Bxh4 {[%clk 0:01:58.1]} 18. Rf1 {[%clk 0:01:34.1]} 18... f5
{[%clk 0:01:57]} 19. f4 {[%clk 0:01:31]} 19... Qe7 {[%clk 0:01:42.6]} 20. Nb5
{[%clk 0:01:28.6]} 20... fxg4 {[%clk 0:01:30.4]} 21. Bxg4 {[%clk 0:01:27.3]}
21... Bd3 {[%clk 0:01:30.9]} 22. Rf3 {[%clk 0:01:20.7]} 22... Be4 {[%clk
0:01:22.3]} 23. Rh3 {[%clk 0:01:14.2]} 23... g5 {[%clk 0:01:22.4]} 24. Nd6
{[%clk 0:01:05.2]} 24... gxf4 {[%clk 0:01:05]} 25. Nxe4 {[%clk 0:01:03.2]} 25...
dxe4 {[%clk 0:01:04.6]} 26. Qc2 {[%clk 0:01:03.8]} 26... Qg7 {[%clk 0:00:36.4]}
27. Rxh4 {[%clk 0:01:00.9]} 27... e3 {[%clk 0:00:33.2]} 28. Be1 {[%clk
0:00:44.9]} 28... Nc6 {[%clk 0:00:26.8]} 29. Qe4 {[%clk 0:00:42]} 29... Ne7
{[%clk 0:00:25.5]} 30. Kh1 {[%clk 0:00:39.2]} 30... Nd5 {[%clk 0:00:24.3]} 31.
Bxe6+ {[%clk 0:00:39]} 1-0

[Event "*** Titled Tuesday Blitz"]
[Site "Chess.com"]
[Date "2021.03.02"]
[Round "9"]
[White "Skat2704"]
[Black "j_coca"]
[Result "1-0"]
[WhiteElo "2580"]
[BlackElo "2358"]
[TimeControl "180+1"]
[EndTime "11:46:44 PST"]
[Termination "Skat2704 won by resignation"]

1. d4 {[%clk 0:03:00.9]} 1... f5 {[%clk 0:02:51.7]} 2. c4 {[%clk 0:02:59.7]}
2... Nf6 {[%clk 0:02:50.2]} 3. g3 {[%clk 0:02:58.4]} 3... g6 {[%clk 0:02:50.3]}
4. Bg2 {[%clk 0:02:57.5]} 4... Bg7 {[%clk 0:02:50.3]} 5. Nc3 {[%clk 0:02:56.5]}
5... d6 {[%clk 0:02:50.6]} 6. d5 {[%clk 0:02:55.7]} 6... O-O {[%clk 0:02:50.1]}
7. Nh3 {[%clk 0:02:54.5]} 7... e5 {[%clk 0:02:46.1]} 8. dxe6 {[%clk 0:02:52.5]}
8... c6 {[%clk 0:02:46]} 9. Ng5 {[%clk 0:02:49.7]} 9... Qe7 {[%clk 0:02:35.2]}
10. Bf4 {[%clk 0:02:42.3]} 10... Ne8 {[%clk 0:02:33.7]} 11. O-O {[%clk
0:02:38.6]} 11... Bxe6 {[%clk 0:02:29.9]} 12. Nxe6 {[%clk 0:02:33.6]} 12... Qxe6
{[%clk 0:02:30.8]} 13. e4 {[%clk 0:02:32.5]} 13... fxe4 {[%clk 0:02:26.7]} 14.
Nxe4 {[%clk 0:02:28.2]} 14... Qxc4 {[%clk 0:02:19.5]} 15. Nxd6 {[%clk
0:02:23.9]} 15... Nxd6 {[%clk 0:02:19.1]} 16. Qxd6 {[%clk 0:02:22.5]} 16... Na6
{[%clk 0:02:10.7]} 17. b3 {[%clk 0:02:19.9]} 17... Qb4 {[%clk 0:02:07.6]} 18.
Rad1 {[%clk 0:02:17.1]} 18... Qxd6 {[%clk 0:02:04.9]} 19. Rxd6 {[%clk
0:02:14.9]} 19... Rf7 {[%clk 0:01:57.4]} 20. Rfd1 {[%clk 0:02:12.7]} 20... Bf8
{[%clk 0:01:48.4]} 21. Rd8 {[%clk 0:02:09.9]} 21... Rxd8 {[%clk 0:01:47.7]} 22.
Rxd8 {[%clk 0:02:08.8]} 22... Nc7 {[%clk 0:01:45.8]} 23. Rb8 {[%clk 0:02:00.9]}
23... Ne6 {[%clk 0:01:41.5]} 24. Bh6 {[%clk 0:01:57]} 24... Ng7 {[%clk
0:01:28.2]} 25. Bh3 {[%clk 0:01:53.5]} 25... Re7 {[%clk 0:01:25.3]} 26. Bg5
{[%clk 0:01:46.7]} 26... Rc7 {[%clk 0:01:21.6]} 27. Bf4 {[%clk 0:01:43.8]} 27...
Rf7 {[%clk 0:01:18.9]} 28. Kg2 {[%clk 0:01:40.1]} 28... Nf5 {[%clk 0:01:05.5]}
29. Bxf5 {[%clk 0:01:38.3]} 29... gxf5 {[%clk 0:01:06.4]} 30. Bh6 {[%clk
0:01:36]} 30... b6 {[%clk 0:01:02.8]} 31. Ra8 {[%clk 0:01:33.8]} 31... a5 {[%clk
0:00:44.1]} 32. Kf3 {[%clk 0:01:33.4]} 32... Rf6 {[%clk 0:00:42.5]} 33. Bxf8
{[%clk 0:01:27.7]} 33... Rxf8 {[%clk 0:00:42.2]} 34. Rxf8+ {[%clk 0:01:27.3]}
34... Kxf8 {[%clk 0:00:43.1]} 35. Kf4 {[%clk 0:01:27.7]} 35... Ke7 {[%clk
0:00:41.9]} 36. Kxf5 {[%clk 0:01:27.3]} 36... Kd6 {[%clk 0:00:42.3]} 37. Ke4
{[%clk 0:01:23]} 37... Kc5 {[%clk 0:00:42.6]} 38. f4 {[%clk 0:01:23]} 38... Kb4
{[%clk 0:00:43.5]} 39. f5 {[%clk 0:01:22.8]} 39... Ka3 {[%clk 0:00:44.4]} 40. f6
{[%clk 0:01:23.1]} 40... Kxa2 {[%clk 0:00:45.3]} 41. f7 {[%clk 0:01:23.3]} 41...
Kxb3 {[%clk 0:00:45.2]} 42. f8=Q {[%clk 0:01:23.4]} 42... b5 {[%clk 0:00:43.9]}
43. Qf7+ {[%clk 0:01:20.6]} 43... Kb4 {[%clk 0:00:43.6]} 44. Qxh7 {[%clk
0:01:18.7]} 44... c5 {[%clk 0:00:43.3]} 45. Kd3 {[%clk 0:01:17.1]} 45... c4+
{[%clk 0:00:39.6]} 46. Kc2 {[%clk 0:01:17.1]} 46... Ka3 {[%clk 0:00:40.1]} 47.
Qe7+ {[%clk 0:01:15]} 47... b4 {[%clk 0:00:40]} 48. Qc5 {[%clk 0:01:13.4]} 48...
a4 {[%clk 0:00:38]} 49. Qxc4 {[%clk 0:01:08.6]} 49... b3+ {[%clk 0:00:37.5]} 50.
Qxb3+ {[%clk 0:01:04.6]} 50... axb3+ {[%clk 0:00:37.1]} 51. Kb1 {[%clk
0:01:05.1]} 51... Kb4 {[%clk 0:00:33.6]} 52. h4 {[%clk 0:01:05.1]} 52... Kc4
{[%clk 0:00:31.9]} 53. h5 {[%clk 0:01:05.3]} 53... Kd5 {[%clk 0:00:32.4]} 54. h6
{[%clk 0:01:05.2]} 54... Ke6 {[%clk 0:00:33]} 55. h7 {[%clk 0:01:05.6]} 55...
Kf7 {[%clk 0:00:33.4]} 56. h8=Q {[%clk 0:01:05.4]} 1-0

[Event "*** Titled Tuesday Blitz"]
[Site "Chess.com"]
[Date "2021.03.02"]
[Round "9"]
[White "chesslh19"]
[Black "tgpgoat"]
[Result "0-1"]
[WhiteElo "2230"]
[BlackElo "2117"]
[TimeControl "180+1"]
[EndTime "11:46:44 PST"]
[Termination "tgpgoat won by resignation"]

1. e4 {[%clk 0:01:45.4]} 1... c5 {[%clk 0:02:58.8]} 2. Nf3 {[%clk 0:01:44.7]}
2... Nc6 {[%clk 0:02:58.6]} 3. d4 {[%clk 0:01:45]} 3... cxd4 {[%clk 0:02:59.5]}
4. Nxd4 {[%clk 0:01:45.6]} 4... e5 {[%clk 0:02:59]} 5. Nb5 {[%clk 0:01:45.3]}
5... d6 {[%clk 0:02:59.4]} 6. N1c3 {[%clk 0:01:45.7]} 6... a6 {[%clk 0:02:59.8]}
7. Na3 {[%clk 0:01:46.3]} 7... b5 {[%clk 0:03:00.4]} 8. Nd5 {[%clk 0:01:46.8]}
8... Nf6 {[%clk 0:03:00.8]} 9. Bg5 {[%clk 0:01:45.7]} 9... Be7 {[%clk
0:03:00.2]} 10. Bxf6 {[%clk 0:01:45.7]} 10... Bxf6 {[%clk 0:03:01.1]} 11. c3
{[%clk 0:01:46.1]} 11... Bg5 {[%clk 0:03:01.6]} 12. Nc2 {[%clk 0:01:46.2]} 12...
O-O {[%clk 0:03:01.2]} 13. a4 {[%clk 0:01:45.8]} 13... bxa4 {[%clk 0:02:57]} 14.
Rxa4 {[%clk 0:01:46.7]} 14... f5 {[%clk 0:02:56.5]} 15. Bc4 {[%clk 0:01:40.6]}
15... Kh8 {[%clk 0:02:55.9]} 16. exf5 {[%clk 0:01:39.9]} 16... Rxf5 {[%clk
0:02:47.6]} 17. O-O {[%clk 0:01:31.1]} 17... Rf8 {[%clk 0:02:46.4]} 18. Nce3
{[%clk 0:01:17]} 18... Ne7 {[%clk 0:02:32]} 19. Nxe7 {[%clk 0:01:13.9]} 19...
Bxe7 {[%clk 0:02:32.3]} 20. Nd5 {[%clk 0:01:12.8]} 20... Bb7 {[%clk 0:02:31.5]}
21. b3 {[%clk 0:00:56.3]} 21... Bf6 {[%clk 0:02:10.9]} 22. Qd3 {[%clk 0:00:53]}
22... a5 {[%clk 0:02:08.5]} 23. Ra2 {[%clk 0:00:47.5]} 23... e4 {[%clk
0:02:04.5]} 24. Qxe4 {[%clk 0:00:42.5]} 24... Bxc3 {[%clk 0:02:02.1]} 25. Qd3
{[%clk 0:00:35.7]} 25... Be5 {[%clk 0:01:59.1]} 26. Rd2 {[%clk 0:00:25.3]} 26...
a4 {[%clk 0:01:50.1]} 27. bxa4 {[%clk 0:00:21.1]} 27... Rxa4 {[%clk 0:01:47.2]}
28. Ne3 {[%clk 0:00:20.4]} 28... Qg5 {[%clk 0:01:36.8]} 29. Qb3 {[%clk
0:00:08.3]} 29... Bxg2 {[%clk 0:01:21.2]} 30. Nxg2 {[%clk 0:00:07.3]} 30... Rxc4
{[%clk 0:01:21.1]} 31. Qxc4 {[%clk 0:00:06.9]} 31... Qxd2 {[%clk 0:01:20.7]} 32.
Qg4 {[%clk 0:00:04.3]} 32... Bd4 {[%clk 0:01:16.4]} 33. Ne3 {[%clk 0:00:02.8]}
33... Bxe3 {[%clk 0:01:12.1]} 34. fxe3 {[%clk 0:00:03.1]} 34... Qxe3+ {[%clk
0:01:12.1]} 35. Kg2 {[%clk 0:00:02.8]} 35... Qe7 {[%clk 0:01:07.1]} 36. Rxf8+
{[%clk 0:00:01.4]} 36... Qxf8 {[%clk 0:01:08]} 37. Qe6 {[%clk 0:00:01.6]} 37...
g6 {[%clk 0:01:05]} 38. Qd5 {[%clk 0:00:01.9]} 38... Kg7 {[%clk 0:01:03.5]} 39.
Qb7+ {[%clk 0:00:02]} 39... Qf7 {[%clk 0:01:03.1]} 40. Qd5 {[%clk 0:00:02.1]}
40... Qxd5+ {[%clk 0:01:02.4]} 0-1

[Event "*** Titled Tuesday Blitz"]
[Site "Chess.com"]
[Date "2021.03.02"]
[Round "9"]
[White "canary2016"]
[Black "Kaliopa"]
[Result "1-0"]
[WhiteElo "1994"]
[BlackElo "2221"]
[TimeControl "180+1"]
[EndTime "11:46:45 PST"]
[Termination "canary2016 won on time"]

1. d4 {[%clk 0:03:00.9]} 1... Nf6 {[%clk 0:02:58.9]} 2. c4 {[%clk 0:03:00.6]}
2... c5 {[%clk 0:02:58.6]} 3. d5 {[%clk 0:02:59.3]} 3... e6 {[%clk 0:02:58.8]}
4. Nc3 {[%clk 0:02:57.1]} 4... exd5 {[%clk 0:02:58.4]} 5. cxd5 {[%clk
0:02:57.1]} 5... d6 {[%clk 0:02:58.8]} 6. Nf3 {[%clk 0:02:57]} 6... g6 {[%clk
0:02:58.4]} 7. Bf4 {[%clk 0:02:55]} 7... Bg7 {[%clk 0:02:46.8]} 8. e3 {[%clk
0:02:55.1]} 8... O-O {[%clk 0:02:39.7]} 9. Bc4 {[%clk 0:02:53.1]} 9... a6 {[%clk
0:02:38]} 10. a4 {[%clk 0:02:51.5]} 10... Re8 {[%clk 0:02:35.8]} 11. O-O {[%clk
0:02:49.6]} 11... Nbd7 {[%clk 0:02:29.1]} 12. h3 {[%clk 0:02:47.7]} 12... Nb6
{[%clk 0:01:53.3]} 13. Be2 {[%clk 0:02:41.6]} 13... Ne4 {[%clk 0:01:47.6]} 14.
Nxe4 {[%clk 0:02:27.2]} 14... Rxe4 {[%clk 0:01:48.5]} 15. a5 {[%clk 0:02:27.2]}
15... Nc4 {[%clk 0:01:34.7]} 16. Bxc4 {[%clk 0:02:17.9]} 16... Rxc4 {[%clk
0:01:33.2]} 17. Ra2 {[%clk 0:02:16.8]} 17... Bf5 {[%clk 0:01:29.2]} 18. Nd2
{[%clk 0:02:11.5]} 18... Rb4 {[%clk 0:01:27.8]} 19. b3 {[%clk 0:02:06.6]} 19...
Qf6 {[%clk 0:01:03.3]} 20. Nc4 {[%clk 0:02:03]} 20... Rd8 {[%clk 0:00:57]} 21.
Bg3 {[%clk 0:01:50.3]} 21... Be4 {[%clk 0:00:28.4]} 22. f3 {[%clk 0:01:49.1]}
22... Bf5 {[%clk 0:00:28]} 23. e4 {[%clk 0:01:48.6]} 23... Bc8 {[%clk
0:00:23.3]} 24. Bf2 {[%clk 0:01:43.1]} 24... Qc3 {[%clk 0:00:21.8]} 25. Qc2
{[%clk 0:01:38.4]} 25... Qxc2 {[%clk 0:00:21]} 26. Rxc2 {[%clk 0:01:38.4]} 26...
Rxb3 {[%clk 0:00:21.7]} 27. Nb6 {[%clk 0:01:33.5]} 27... Bd7 {[%clk 0:00:19.9]}
28. Bg3 {[%clk 0:01:30.6]} 28... Bb5 {[%clk 0:00:19]} 29. Rfc1 {[%clk
0:01:26.2]} 29... Bd4+ {[%clk 0:00:15.9]} 30. Kh2 {[%clk 0:01:25.7]} 30... Ra3
{[%clk 0:00:11.3]} 31. Be1 {[%clk 0:01:21.2]} 31... Be3 {[%clk 0:00:10]} 32. Rb1
{[%clk 0:01:19.9]} 32... Bf4+ {[%clk 0:00:09.9]} 33. g3 {[%clk 0:01:19]} 33...
Be5 {[%clk 0:00:09.5]} 34. Rd1 {[%clk 0:01:14.2]} 34... Ba4 {[%clk 0:00:07.9]}
35. Nxa4 {[%clk 0:01:13.2]} 35... Rxa4 {[%clk 0:00:08.8]} 36. Re2 {[%clk
0:01:12.1]} 36... Rxa5 {[%clk 0:00:08.4]} 37. Bxa5 {[%clk 0:01:11.5]} 37... Rd7
{[%clk 0:00:05]} 38. f4 {[%clk 0:01:11.3]} 38... Bd4 {[%clk 0:00:04.2]} 39. Rb1
{[%clk 0:01:10.6]} 39... b5 {[%clk 0:00:04]} 40. Ra2 {[%clk 0:01:09.5]} 40... b4
{[%clk 0:00:04.1]} 41. Bb6 {[%clk 0:01:07.9]} 41... Re7 {[%clk 0:00:03.1]} 42.
Re1 {[%clk 0:01:05.2]} 42... b3 {[%clk 0:00:02.1]} 43. Rxa6 {[%clk 0:01:04.9]}
43... Rb7 {[%clk 0:00:01.9]} 44. e5 {[%clk 0:01:02.9]} 1-0

[Event "*** Titled Tuesday Blitz"]
[Site "Chess.com"]
[Date "2021.03.02"]
[Round "9"]
[White "Alexandercs432"]
[Black "jordanasoul"]
[Result "0-1"]
[WhiteElo "2158"]
[BlackElo "2153"]
[TimeControl "180+1"]
[EndTime "11:46:46 PST"]
[Termination "jordanasoul won on time"]

1. e4 {[%clk 0:02:44.8]} 1... c5 {[%clk 0:02:58.1]} 2. Nf3 {[%clk 0:02:44.8]}
2... Nc6 {[%clk 0:02:57.3]} 3. d4 {[%clk 0:02:45]} 3... cxd4 {[%clk 0:02:57.7]}
4. Nxd4 {[%clk 0:02:45.9]} 4... e5 {[%clk 0:02:57.9]} 5. Nb5 {[%clk 0:02:45.6]}
5... d6 {[%clk 0:02:58]} 6. N1c3 {[%clk 0:02:45.3]} 6... a6 {[%clk 0:02:56.2]}
7. Na3 {[%clk 0:02:45.5]} 7... b5 {[%clk 0:02:52.4]} 8. Nd5 {[%clk 0:02:45.8]}
8... Nge7 {[%clk 0:02:32.7]} 9. c4 {[%clk 0:02:39.5]} 9... Nxd5 {[%clk 0:02:28]}
10. exd5 {[%clk 0:02:39.4]} 10... Nd4 {[%clk 0:02:26.5]} 11. cxb5 {[%clk
0:02:34.6]} 11... g6 {[%clk 0:02:10.9]} 12. Be2 {[%clk 0:02:25.6]} 12... Bg7
{[%clk 0:02:08]} 13. O-O {[%clk 0:02:25.6]} 13... O-O {[%clk 0:02:03.6]} 14.
bxa6 {[%clk 0:02:21.3]} 14... Nxe2+ {[%clk 0:01:50.3]} 15. Qxe2 {[%clk
0:02:22.2]} 15... Bxa6 {[%clk 0:01:50.6]} 16. Nc4 {[%clk 0:02:21]} 16... Rc8
{[%clk 0:01:42.7]} 17. b3 {[%clk 0:02:20.3]} 17... Qh4 {[%clk 0:01:38.2]} 18.
Ba3 {[%clk 0:01:40.8]} 18... Rxc4 {[%clk 0:01:11.3]} 19. bxc4 {[%clk 0:01:41.7]}
19... Bxc4 {[%clk 0:01:11.3]} 20. Qc2 {[%clk 0:01:20.4]} 20... Bxf1 {[%clk
0:01:08.7]} 21. Rxf1 {[%clk 0:01:21.3]} 21... Rd8 {[%clk 0:01:01.8]} 22. g3
{[%clk 0:01:11.8]} 22... Qf6 {[%clk 0:00:47.7]} 23. Rb1 {[%clk 0:00:52]} 23...
h5 {[%clk 0:00:46.7]} 24. h4 {[%clk 0:00:50.9]} 24... Ra8 {[%clk 0:00:45.7]} 25.
Rb3 {[%clk 0:00:44.9]} 25... e4 {[%clk 0:00:44.8]} 26. Kg2 {[%clk 0:00:32]}
26... Qd4 {[%clk 0:00:43.2]} 27. Bb2 {[%clk 0:00:19.1]} 27... Qxd5 {[%clk
0:00:41.8]} 28. Bxg7 {[%clk 0:00:18.7]} 28... Kxg7 {[%clk 0:00:42.2]} 29. Qb2+
{[%clk 0:00:06.7]} 29... Kh7 {[%clk 0:00:41.6]} 0-1

[Event "*** Titled Tuesday Blitz"]
[Site "Chess.com"]
[Date "2021.03.02"]
[Round "9"]
[White "superchess02"]
[Black "ukchessbomber"]
[Result "1-0"]
[WhiteElo "2777"]
[BlackElo "2546"]
[TimeControl "180+1"]
[EndTime "11:46:51 PST"]
[Termination "superchess02 won by checkmate"]

1. e4 {[%clk 0:02:56.3]} 1... e5 {[%clk 0:02:57.8]} 2. Nf3 {[%clk 0:02:56.7]}
2... Nc6 {[%clk 0:02:58.4]} 3. Bc4 {[%clk 0:02:57.4]} 3... Nf6 {[%clk
0:02:58.7]} 4. O-O {[%clk 0:02:57.8]} 4... Nxe4 {[%clk 0:02:58.5]} 5. Re1 {[%clk
0:02:58.1]} 5... d5 {[%clk 0:02:57]} 6. Bb5 {[%clk 0:02:57]} 6... Bc5 {[%clk
0:02:54.5]} 7. d4 {[%clk 0:02:54.7]} 7... exd4 {[%clk 0:02:55]} 8. b4 {[%clk
0:02:51.2]} 8... Bxb4 {[%clk 0:02:37.5]} 9. c3 {[%clk 0:02:51.3]} 9... dxc3
{[%clk 0:02:27.4]} 10. Qa4 {[%clk 0:02:50.7]} 10... O-O {[%clk 0:01:53]} 11.
Bxc6 {[%clk 0:02:50.2]} 11... Bc5 {[%clk 0:01:53.4]} 12. Rxe4 {[%clk 0:02:45.3]}
12... dxe4 {[%clk 0:01:35.6]} 13. Bxe4 {[%clk 0:02:46.2]} 13... Qf6 {[%clk
0:01:20.2]} 14. Qc2 {[%clk 0:02:38.7]} 14... Bb4 {[%clk 0:00:47.5]} 15. Bg5
{[%clk 0:02:31.5]} 15... Qd6 {[%clk 0:00:39.5]} 16. Nxc3 {[%clk 0:02:22.5]}
16... h6 {[%clk 0:00:34]} 17. Be3 {[%clk 0:02:18.9]} 17... a6 {[%clk 0:00:28.7]}
18. Nd5 {[%clk 0:02:17.6]} 18... Be6 {[%clk 0:00:25.4]} 19. Nxb4 {[%clk
0:02:16.4]} 19... Qxb4 {[%clk 0:00:26.3]} 20. Bc5 {[%clk 0:02:16.7]} 20... Qb5
{[%clk 0:00:23.6]} 21. Bxf8 {[%clk 0:02:14.8]} 21... Rxf8 {[%clk 0:00:24.5]} 22.
Rb1 {[%clk 0:02:14.4]} 22... Qa5 {[%clk 0:00:20.9]} 23. Rxb7 {[%clk 0:02:13.6]}
23... c5 {[%clk 0:00:21.4]} 24. Rb2 {[%clk 0:02:09.8]} 24... c4 {[%clk 0:00:20]}
25. Rb1 {[%clk 0:01:50]} 25... Rc8 {[%clk 0:00:16.6]} 26. Nd4 {[%clk 0:01:49.4]}
26... Bd7 {[%clk 0:00:12.9]} 27. h3 {[%clk 0:01:36.4]} 27... Qe5 {[%clk
0:00:12.4]} 28. Nf3 {[%clk 0:01:35]} 28... Qa5 {[%clk 0:00:12.1]} 29. Rb7 {[%clk
0:01:31.4]} 29... Ba4 {[%clk 0:00:09.4]} 30. Qc1 {[%clk 0:01:28.4]} 30... Re8
{[%clk 0:00:05.7]} 31. Qf4 {[%clk 0:01:27.1]} 31... f5 {[%clk 0:00:03.3]} 32.
Qxf5 {[%clk 0:01:24.7]} 32... Qxf5 {[%clk 0:00:03]} 33. Bxf5 {[%clk 0:01:25.6]}
33... Bc6 {[%clk 0:00:03.2]} 34. Rc7 {[%clk 0:01:25.2]} 34... Bd5 {[%clk
0:00:03.1]} 35. Bg6 {[%clk 0:01:22.9]} 35... Rd8 {[%clk 0:00:02.5]} 36. Ne5
{[%clk 0:01:21.5]} 36... Kf8 {[%clk 0:00:02.5]} 37. Nxc4 {[%clk 0:01:19.8]}
37... Rb8 {[%clk 0:00:02.9]} 38. Nd6 {[%clk 0:01:18.5]} 38... Bxa2 {[%clk
0:00:02.6]} 39. Ra7 {[%clk 0:01:18.2]} 39... a5 {[%clk 0:00:01.6]} 40. Rxa5
{[%clk 0:01:16.2]} 40... Be6 {[%clk 0:00:02.5]} 41. Ra7 {[%clk 0:01:15.6]} 41...
Rb1+ {[%clk 0:00:03]} 42. Kh2 {[%clk 0:01:15.4]} 42... Rb8 {[%clk 0:00:03.9]}
43. Nf5 {[%clk 0:01:13.1]} 43... Bxf5 {[%clk 0:00:03.1]} 44. Rf7+ {[%clk
0:01:13.6]} 44... Kg8 {[%clk 0:00:03.2]} 45. Rxf5 {[%clk 0:01:14.2]} 45... Rb6
{[%clk 0:00:04.1]} 46. Bf7+ {[%clk 0:01:14]} 46... Kh7 {[%clk 0:00:02.8]} 47. h4
{[%clk 0:01:14.5]} 47... Rb8 {[%clk 0:00:03.6]} 48. h5 {[%clk 0:01:14.3]} 48...
Rh8 {[%clk 0:00:03.3]} 49. Bg6+ {[%clk 0:01:14.2]} 49... Kg8 {[%clk 0:00:03.8]}
50. Re5 {[%clk 0:01:15.1]} 50... Kf8 {[%clk 0:00:04.7]} 51. Re8# {[%clk
0:01:16]} 1-0